[Event "44th Indian Team Championship 2025"]
[Site "Gujarat"]
[Date "2025.03.05"]
[Round "1.10"]
[White "Salil, Kumar D."]
[Black "Harikrishnan.A.Ra"]
[Result "0-1"]
[Annotator "TA"]
[ECO "C02"]
[WhiteElo "1778"]
[BlackElo "2468"]
[PlyCount "134"]
[EventDate "2025.03.03"]
[EventCountry "IND"]
[SourceTitle "playchess.com"]
[Source "ChessBase"]
[SourceQuality "1"]
[TimeControl "5400+30"]

{[%evp 18,134,16,14,19,-14,8,-9,0,-12,0,-2,0,-3,0,-33,-21,-42,-30,-35,-44,-42,-26,-31,-35,-40,-40,-43,-39,-38,-23,-25,-26,-36,-22,-18,-19,-35,-26,-57,-56,-128,-136,-123,-102,-138,-125,-135,-132,-198,-175,-219,-287,-287,-287,-287,-287,-286,-289,-284,-187,-293,-288,-289,-253,-460,-367,-443,-335,-535,-516,-768,-747,-1101,-984,-1258,-1145,-1200,-1210,-1239,-1235,-1183,-1170,-1003,-966,-874,-676,-1276,-1261,-1254,-1254,-1247,-1240,-1211,-1197,-1072,-1030,-1093,-1042,-922,-822,-977,-919,-730,-579,-29979,-29980,-29980,-29981,-29981,-29977,-29983,-29984,-29984,-29985,-29989,-29990,-29989,-29990]} 1. e4 {[%emt 0:00:23]} e6 {[%emt 0:00:33]} 2. d4 {[%emt 0:00:13]} d5 {[%emt 0:00:08]} 3. e5 {[%emt 0:00:49]} c5 {[%emt 0:00:07]} 4. c3 {[%emt 0:00:02]} Qb6 {[%emt 0:00:12]} 5. Nf3 {[%emt 0:00:04]} Bd7 {[%emt 0:00:09]} 6. Be2 {[%emt 0:03:35]} Bb5 {[%emt 0:00:10]} 7. O-O {[%emt 0:00:10]} Bxe2 {[%emt 0:00:20]} 8. Qxe2 {[%emt 0:00:03]} cxd4 {[%emt 0:00:38]} 9. cxd4 {[%emt 0:00:47]} Nc6 {[%emt 0:00:09]} 10. Nc3 {[%emt 0:00:14]} Nge7 {[%emt 0:00:23] C02: French: Advance Variation.} 11. Qb5 {[%emt 0:00:22]} Nc8 {[%emt 0:02:45]} 12. Bg5 $146 {[%emt 0:02:41]} (12. Qd3 Be7 13. Ne2 Qd8 14. Nf4 Nb6 15. Bd2 Nc4 16. Bc3 a6 17. b3 Na3 18. Bb2 {0-1 Reefat,B (2405)-Sevillano,E (2445) Olympiad-31 Moscow 1994 (6.3)}) 12... Bb4 {[%emt 0:01:41] The position is equal.} 13. Qa4 {[%emt 0:02:14]} O-O {[%emt 0:01:27]} 14. Ne2 {[%emt 0:00:35]} Be7 {[%emt 0:00:28]} 15. Bxe7 {[%emt 0:01:47]} N8xe7 {[%emt 0:00:07]} 16. b3 {[%emt 0:01:00]} Rfc8 {[%emt 0:00:39]} 17. Rad1 {[%emt 0:00:59]} Rc7 {[%emt 0:00:55]} 18. Rd2 {[%emt 0:02:49]} Rac8 {[%emt 0:00:49]} 19. h3 {[%emt 0:06:06]} h6 {[%emt 0:00:16]} 20. Rfd1 {[%emt 0:00:12]} Qb4 {[%emt 0:00:35]} 21. Qxb4 {[%emt 0:03:03]} Nxb4 {[%emt 0:00:03]} 22. Ne1 {[%emt 0:01:30]} Kf8 {[%emt 0:03:05]} 23. g4 {[%emt 0:03:23]} b6 {[%emt 0:02:44]} 24. Kg2 {[%emt 0:03:06]} g5 {[%emt 0:08:15]} 25. f4 {[%emt 0:03:08]} Ng6 {[%emt 0:00:57]} 26. fxg5 {[%emt 0:02:53]} Nh4+ {[%emt 0:00:07]} 27. Kf2 {[%emt 0:01:57]} hxg5 {[%emt 0:00:11]} 28. Ng1 {[%emt 0:02:49]} Kg7 {[%emt 0:02:46]} 29. Ngf3 {[%emt 0:03:56]} (29. Ne2 $15) 29... Nxf3 $17 {[%emt 0:00:21]} 30. Nxf3 {[%emt 0:00:03]} Kg6 {[%emt 0:00:12]} 31. h4 {[%emt 0:05:50]} gxh4 {[%emt 0:01:03]} 32. Nxh4+ {[%emt 0:00:09]} Kg7 {[%emt 0:03:06]} 33. Ng2 {[%emt 0:09:18]} (33. g5 $17) 33... Rc2 $19 {[%emt 0:04:17]} 34. Ne3 {[%emt 0:02:29]} Rxa2 {[%emt 0:01:50]} 35. Rxa2 {[%emt 0:04:24]} Nxa2 {[%emt 0:00:06][%mdl 4096] Endgame KRN-KRN. Black is a pawn up.} 36. Ra1 {[%emt 0:00:11]} Nc1 {[%emt 0:00:06]} 37. Rxa7 {[%emt 0:08:52]} Nxb3 {[%emt 0:00:08]} 38. Ra4 {[%emt 0:01:26]} Nd2 {[%emt 0:06:30]} 39. Rb4 {[%emt 0:01:14] [#]} (39. Ke2 $142 b5 40. Rb4) 39... Rc3 $1 {[%emt 0:00:16]} 40. Rb5 {[%emt 0:01:46]} Rb3 {[%emt 0:00:34]} 41. Rxb3 {[%emt 0:00:25]} Nxb3 {[%emt 0:00:02] KN-KN. Black is a pawn up.} 42. Nc2 {[%emt 0:00:06]} Kg6 {[%emt 0:00:08]} 43. Ke3 {[%emt 0:02:39]} (43. Kf3 {was necessary.}) 43... Kg5 {[%emt 0:00:28]} 44. Kf3 {[%emt 0:00:30]} b5 {[%emt 0:00:45]} 45. Kg3 {[%emt 0:00:15]} Nc1 {[%emt 0:00:06]} 46. Kf3 {[%emt 0:01:53]} Na2 {[%emt 0:00:03]} 47. Na1 {[%emt 0:01:18]} b4 {[%emt 0:00:08]} 48. Nb3 {[%emt 0:00:03]} Nc3 {[%emt 0:00:10]} 49. Nc5 {[%emt 0:00:18] [#]} Ne4 $1 {[%emt 0:01:17][%mdl 512]} 50. Nb3 {[%emt 0:00:29]} Kh4 {[%emt 0:00:09]} 51. Kf4 {[%emt 0:00:55]} Nf2 {[%emt 0:00:15]} 52. g5 {[%emt 0:06:27]} Nh3+ {[%emt 0:00:32]} 53. Ke3 {[%emt 0:00:32]} Kxg5 {[%emt 0:00:13]} 54. Nc5 {[%emt 0:00:30]} Nf4 {[%emt 0:00:10]} 55. Kd2 {[%emt 0:00:23]} Kf5 {[%emt 0:00:17]} 56. Kc2 {[%emt 0:00:26]} Ne2 {[%emt 0:00:20]} 57. Kd3 {[%emt 0:00:25]} Ng3 {[%emt 0:00:28]} 58. Kc2 {[%emt 0:00:41]} Kf4 {[%emt 0:00:08]} 59. Kd3 {[%emt 0:00:20]} Kf3 {[%emt 0:00:16]} 60. Nb7 {[%emt 0:00:28]} Ne4 {[%emt 0:00:47] White must now prevent ...Nf2+.} 61. Nd6 {[%emt 0:00:22]} f5 {[%emt 0:00:12] Black mates.} 62. Nb7 {[%emt 0:00:46]} f4 {[%emt 0:00:17]} 63. Nc5 {[%emt 0:00:33]} Ng5 {[%emt 0:00:08]} 64. Nb3 {[%emt 0:00:58]} Kg2 {[%emt 0:00:06]} 65. Nd2 {[%emt 0:01:05]} f3 {[%emt 0:00:05]} 66. Kc2 {[%emt 0:03:07]} f2 {[%emt 0:00:08]} 67. Kb3 {[%emt 0:00:14]} Nf3 {[%emt 0:00:05] Weighted Error Value: White=0.44/Black=0.08 (flawless)   Mistake:       	White=4     	---        Inaccurate:     	White=6     	Black=1      OK:         	White=14    	Black=15     Best:        	White=1     	Black=3      Strong:       	---       	Black=1} 0-1

[Event "44th Indian Team Championship 2025"]
[Site "Gujarat"]
[Date "2025.03.05"]
[Round "1.11"]
[White "Raahul V S"]
[Black "Ajay Kumar Rai"]
[Result "1/2-1/2"]
[Annotator "TA"]
[ECO "A38"]
[WhiteElo "2389"]
[BlackElo "1795"]
[PlyCount "128"]
[EventDate "2025.03.03"]
[EventCountry "IND"]
[SourceTitle "playchess.com"]
[Source "ChessBase"]
[SourceQuality "1"]
[TimeControl "5400+30"]

{[%evp 19,128,23,52,30,28,31,27,17,22,27,33,34,47,53,41,35,77,79,135,77,69,81,93,92,80,65,64,47,56,37,105,103,95,58,84,69,100,98,138,123,193,46,134,140,163,163,257,220,284,209,218,206,214,18,13,25,15,14,17,22,44,0,14,35,20,0,0,0,0,0,0,9,79,62,66,60,67,64,126,138,147,0,0,0,0,0,0,0,0,0,0,0,0,0,0,0,0,0,0,0,0,0,0,0,0,0,0,0,0,0,0]} 1. c4 {[%emt 0:00:57]} c5 {[%emt 0:01:31]} 2. Nc3 {[%emt 0:00:17]} Nc6 {[%emt 0:00:16]} 3. Nf3 {[%emt 0:00:26]} Nf6 {[%emt 0:00:08]} 4. g3 {[%emt 0:00:21]} g6 {[%emt 0:00:26]} 5. Bg2 {[%emt 0:00:17]} Bg7 {[%emt 0:00:05]} 6. d4 {[%emt 0:00:08]} cxd4 {[%emt 0:00:31]} 7. Nxd4 {[%emt 0:00:05]} O-O {[%emt 0:00:09]} 8. Nc2 {[%emt 0:00:38]} d6 {[%emt 0:00:46]} 9. O-O {[%emt 0:00:26]} Bd7 {[%emt 0:01:30]} 10. b3 {[%emt 0:01:19]} Qc8 {[%emt 0:00:28]} 11. Re1 {[%emt 0:00:42] A38: Symmetrical English vs ...g6: 4 Bg2 Bg7 5 Nf3 Nf6.} Rd8 {[%emt 0:04:02]} 12. Bb2 {[%emt 0:02:29]} Bh3 {[%emt 0:00:23]} 13. e4 {[%emt 0:03:01] White has an edge.} Bxg2 {[%emt 0:00:44]} 14. Kxg2 {[%emt 0:00:04]} Qg4 $146 {[%emt 0:00:41]} (14... e6 15. Qc1 a6 16. Ne3 b5 17. cxb5 axb5 18. Nxb5 Qb7 19. Nc3 Nb4 20. Qb1 d5 {½-½ Schneider Zinner,H (2413)-Burlacu,B (2319) AUT-chT2O 1718 2017 (7.3)}) 15. f3 {[%emt 0:00:18]} Qd7 {[%emt 0:03:15]} 16. Qe2 {[%emt 0:03:59]} Ne8 {[%emt 0:00:27]} 17. Rad1 {[%emt 0:00:24]} Qe6 {[%emt 0:03:05]} 18. Ne3 {[%emt 0:00:38]} f6 {[%emt 0:03:52]} (18... Rac8) 19. Ned5 {[%emt 0:02:17]} (19. f4) 19... Qf7 $16 {[%emt 0:00:42]} 20. f4 {[%emt 0:08:18]} e6 {[%emt 0:00:55]} 21. Ne3 {[%emt 0:00:07]} f5 {[%emt 0:00:36]} 22. exf5 {[%emt 0:01:14]} gxf5 {[%emt 0:07:27]} 23. Rd3 {[%emt 0:00:54]} Rd7 {[%emt 0:07:00]} 24. Ba3 {[%emt 0:10:56]} Bf8 {[%emt 0:05:01]} ({Black should play} 24... Rad8 $14) 25. Nc2 {[%emt 0:09:29]} Ng7 {[%emt 0:01:01]} 26. Nb5 {[%emt 0:01:17][%cal Rb5d6]} Rad8 {[%emt 0:04:34]} 27. Red1 {[%emt 0:08:33] White is much more active.} d5 {[%emt 0:10:34]} 28. Bxf8 {[%emt 0:02:55]} Kxf8 {[%emt 0:00:39]} 29. c5 {[%emt 0:01:08]} Ne8 {[%emt 0:04:45]} (29... Re7 $16) 30. Re1 {[%emt 0:02:03][%csl Oe6] White attacks a weakness} (30. Nbd4 $18) 30... Re7 {[%emt 0:00:14]} (30... Nf6 $14) 31. Nbd4 {[%emt 0:00:57]} Nxd4 {[%emt 0:01:17]} 32. Nxd4 {[%emt 0:00:03]} (32. Rxd4 $6 Nf6 $14) 32... Nc7 {[%emt 0:01:45]} (32... Nf6 $142 33. Qe5 (33. Nxe6+ Kg8 $17) 33... Rde8) 33. b4 {[%emt 0:00:29]} Rde8 {[%emt 0:06:35]} 34. Qe5 {[%emt 0:00:15] Prevents Qf6} Qg7 {[%emt 0:07:41]} 35. Qd6 {[%emt 0:01:48]} Kg8 {[%emt 0:00:20]} 36. b5 $2 {[%emt 0:00:43]} ({White should try} 36. c6 $18 bxc6 37. Qxc6) 36... Nxb5 $1 $11 {[%emt 0:00:57]} 37. Nxb5 {[%emt 0:00:30]} Qb2+ {[%emt 0:00:06]} 38. Kh3 {[%emt 0:00:21]} Qxb5 {[%emt 0:00:07] [#]} 39. Rxd5 {[%emt 0:00:13]} exd5 {[%emt 0:06:53]} (39... Kf7 {feels hotter.} 40. Rd3 Qc4 41. a3 Rc8) 40. Rxe7 {[%emt 0:00:05]} Rxe7 {[%emt 0:00:03]} 41. Qxe7 {[%emt 0:00:03][%mdl 4096] Endgame KQ-KQ} Qc6 {[%emt 0:00:34]} 42. Qg5+ {[%emt 0:00:41]} Qg6 $1 {[%emt 0:01:08]} 43. Qd8+ {[%emt 0:00:06]} Kg7 {[%emt 0:00:05]} 44. Qe7+ {[%emt 0:00:26]} Qf7 {[%emt 0:00:12]} 45. Qe5+ {[%emt 0:00:04]} Kg6 {[%emt 0:00:40]} (45... Kg8 $1 $11) 46. g4 $1 $16 {[%emt 0:00:31]} h6 {[%emt 0:01:07]} 47. Kg3 $1 {[%emt 0:01:02]} fxg4 {[%emt 0:03:32]} 48. Kxg4 {[%emt 0:00:30]} Qd7+ {[%emt 0:05:26] [#]} (48... Kh7 $14) 49. f5+ $1 {[%emt 0:00:04]} Kf7 {[%emt 0:00:04] [#]} 50. Kh5 {[%emt 0:02:08]} (50. Qd6 $1 $16 {[%cal Rd6d7]} h5+ 51. Kg5 (51. Kxh5 Qxf5+ 52. Kh4 Kg7 $11) 51... Qe7+ 52. Qxe7+ (52. Kxh5 Qe2+ 53. Kh4 Qe4+ 54. Kg5 Qe3+ 55. Qf4 d4 $11) 52... Kxe7 53. Kxh5) 50... d4 $11 {[%emt 0:01:27] The position is equal.} 51. Kxh6 {[%emt 0:00:18] Threatens to win with Qg7+.} d3 $1 {[%emt 0:00:57]} 52. Qg7+ {[%emt 0:00:44]} Ke8 {[%emt 0:00:02]} 53. Qg8+ {[%emt 0:00:03]} Ke7 {[%emt 0:02:21]} 54. Qg5+ {[%emt 0:02:15]} Kf7 {[%emt 0:00:15]} 55. Qg7+ {[%emt 0:02:49]} Ke8 {[%emt 0:00:10]} 56. Qh8+ {[%emt 0:00:02]} Kf7 {[%emt 0:00:40]} 57. Qh7+ {[%emt 0:00:55]} Ke8 {[%emt 0:00:05]} 58. Qg8+ {[%emt 0:00:06]} Ke7 {[%emt 0:00:12]} 59. Kg5 {[%emt 0:00:18]} Qd4 {[%emt 0:01:54] ...Qg1+ would now be deadly. Repels f6+} 60. Qh7+ {[%emt 0:01:03]} (60. Qe6+ Kd8 61. f6 (61. Qf6+ $2 Qxf6+ 62. Kxf6 d2 $19) 61... Qxc5+ 62. Kh6 d2 63. Qg8+ Kc7 64. Qf7+ Kb6 65. Qb3+ Ka5 $17) 60... Kd8 {[%emt 0:01:52]} 61. Qxb7 {[%emt 0:00:30]} (61. Qg8+ Kc7 62. Qf7+ Qd7 $19 (62... Kc6 63. Qe6+ Kb5 64. Qb3+ Kc6 65. Qe6+ Kxc5 66. f6 $15)) 61... d2 {[%emt 0:00:32]} 62. c6 {[%emt 0:00:11]} Qd6 {[%emt 0:02:45] Against c7+} ({Inferior is} 62... d1=R 63. c7+ Ke8 64. c8=Q+ Qd8+ 65. f6 (65. Qxd8+ Kxd8 66. f6 Rg1+ 67. Kh6 Re1 $18) 65... Rg1+ 66. Kh6 Re1 67. f7+ Kf8 68. Qxd8+) 63. f6 {[%emt 0:02:39]} (63. Qxa7 $2 {too greedy.} d1=Q (63... d1=B 64. Qa5+ Ke8 65. f6 $16) 64. Qa8+ Ke7 65. Qb7+ Kf8 66. Qc8+ Qd8+ 67. Qxd8+ Qxd8+ $19) 63... d1=Q {[%emt 0:01:10] ( -> ...Qg1+)} 64. Qa8+ {[%emt 0:00:03]} Kc7 {[%emt 0:00:12] White really could win this.   Weighted Error Value: White=0.20 (precise) /Black=0.18 (very precise)   Missed win:     	White=1     	---        Mistake:       	White=3     	Black=7      Inaccurate:     	White=1     	Black=3      OK:         	White=17    	Black=14     Best:        	White=1     	Black=8      Strong:       	White=3     	Black=3      Brilliant:      	White=1     	---} 1/2-1/2

[Event "44th Indian Team Championship 2025"]
[Site "Gujarat"]
[Date "2025.03.05"]
[Round "1.12"]
[White "Himanshu, Moudgil"]
[Black "Sanket Chakravarty"]
[Result "0-1"]
[Annotator "TA"]
[ECO "D00"]
[WhiteElo "1741"]
[BlackElo "2326"]
[PlyCount "52"]
[EventDate "2025.03.03"]
[EventCountry "IND"]
[SourceTitle "playchess.com"]
[Source "ChessBase"]
[SourceQuality "1"]
[TimeControl "5400+30"]

{[%evp 9,52,20,30,16,28,17,15,6,27,-3,29,21,22,-16,-17,-16,-28,-27,5,-127,-124,-141,-140,-119,-126,-133,-119,-146,-153,-161,-162,-317,-312,-318,-310,-307,-313,-562,-561,-551,-556,-545,-545,-511,-504]} 1. g3 {[%emt 0:00:15]} Nf6 {[%emt 0:01:39]} 2. Bg2 {[%emt 0:00:08]} d5 {[%emt 0:00:19]} 3. d4 {[%emt 0:00:23]} c5 {[%emt 0:00:57]} 4. c4 {[%emt 0:00:23]} dxc4 {[%emt 0:03:37]} 5. Qa4+ {[%emt 0:00:33]} Nc6 {[%emt 0:19:29]} 6. dxc5 {[%emt 0:00:44] D00: 1 d4 d5: Unusual lines.} e5 $146 {[%emt 0:05:40]} ({Predecessor:} 6... Qa5+ 7. Qxa5 Nxa5 8. Bd2 Nc6 9. Na3 Be6 10. Nf3 Bd5 11. Rc1 e6 12. Nxc4 Bxc5 {1-0 Bjerre,J (2608)-Daneshvar,B (2490) Titled Tuesday intern op 12th Jul Early blitz 2022 (5)}) 7. Nc3 {[%emt 0:01:31]} Bd7 {[%emt 0:07:01]} 8. Qxc4 {[%emt 0:00:58] The position is equal.} Qa5 {[%emt 0:04:02]} 9. Qb5 {[%emt 0:06:38]} Qc7 {[%emt 0:01:08]} 10. Bg5 {[%emt 0:00:49]} Nd4 {[%emt 0:06:30][%csl LRb5,LRc5] Black sacrificed a pawn} 11. Qxb7 {[%emt 0:01:19]} Qxb7 {[%emt 0:00:00]} (11... Nc2+ $6 12. Kf1 Qxb7 13. Bxb7 $16) 12. Bxb7 {[%emt 0:00:03] A sharp opening} Rb8 {[%emt 0:00:00]} 13. c6 {[%emt 0:01:24]} Nxc6 {[%emt 0:01:41]} (13... Nc2+ $5 14. Kd2 Nxa1 $15) 14. Ba6 {[%emt 0:01:10]} (14. Bxc6 $11 Bxc6 15. Nf3) 14... Nb4 $36 {[%emt 0:01:50][%mdl 2048] Black is in control.} 15. Bd3 {[%emt 0:01:54]} ({But not} 15. Bxf6 $2 gxf6 (15... Nxa6 16. Bxe5 Rxb2 17. Nf3 $14) 16. Bd3 Nxd3+ 17. exd3 Bc6 $19 (17... Rxb2 $2 18. Nge2 $19)) 15... Bc6 {[%emt 0:01:22]} (15... Nxd3+ 16. exd3 Bc6 (16... Rxb2 $2 17. Nd1 $17) 17. f3) 16. f3 {[%emt 0:04:36]} Nxd3+ {[%emt 0:01:50]} 17. exd3 {[%emt 0:00:48]} Rxb2 {[%emt 0:00:18] Black is more active.} 18. Rb1 {[%emt 0:00:10]} Rxb1+ {[%emt 0:02:11]} 19. Nxb1 {[%emt 0:02:20]} Bc5 {[%emt 0:03:48] ...Ng4 would now be deadly. A strong pair of Bishops.} 20. Nc3 $2 {[%emt 0:06:00] [#]} (20. Bxf6 gxf6 21. Nd2) 20... Ng4 $19 {[%emt 0:04:46]} 21. h3 {[%emt 0:06:26]} Nf2 {[%emt 0:01:03]} 22. Rh2 {[%emt 0:00:15]} f6 {[%emt 0:00:49]} 23. Ne4 $2 {[%emt 0:02:49]} (23. Bd2 {keeps fighting.} Nxd3+ 24. Kf1) 23... Nxe4 {[%emt 0:02:25] Black is clearly winning.} 24. dxe4 {[%emt 0:01:46]} fxg5 {[%emt 0:00:12]} 25. Rc2 {[%emt 0:00:25]} Bxg1 {[%emt 0:00:08]} 26. Rxc6 {[%emt 0:00:08]} Kd7 {[%emt 0:00:05] Dodges Rc8.   Weighted Error Value: White=0.42/Black=0.07 (flawless)   Mistake:       	White=3     	---        Inaccurate:     	White=2     	Black=2      OK:         	White=8     	Black=14} 0-1

[Event "44th Indian Team Championship 2025"]
[Site "Gujarat"]
[Date "2025.03.05"]
[Round "1.13"]
[White "Parmod Kumar"]
[Black "Sriansh Das"]
[Result "0-1"]
[Annotator "TA"]
[ECO "D27"]
[WhiteElo "1744"]
[BlackElo "2286"]
[PlyCount "86"]
[EventDate "2025.03.03"]
[EventCountry "IND"]
[SourceTitle "playchess.com"]
[Source "ChessBase"]
[SourceQuality "1"]
[TimeControl "5400+30"]

{[%evp 14,86,43,31,47,39,45,37,40,36,45,47,45,43,34,10,11,16,9,-4,3,-52,-52,-54,-58,-62,-65,-71,-52,-79,-79,-61,-68,-73,-59,-106,-109,-105,-113,-143,-105,-110,-102,-114,-82,-83,-73,-69,-84,-120,-113,-111,-95,-120,-55,-186,-175,-285,-309,-303,-292,-295,-242,-337,-324,-322,-317,-756,-767,-718,-739,-1147,-998,-903,-840]} 1. d4 {[%emt 0:00:05]} d5 {[%emt 0:00:14]} 2. c4 {[%emt 0:00:06]} dxc4 {[%emt 0:00:38]} 3. e3 {[%emt 0:00:17]} Nf6 {[%emt 0:00:05]} 4. Bxc4 {[%emt 0:00:04]} e6 {[%emt 0:00:04]} 5. Nf3 {[%emt 0:00:37]} a6 {[%emt 0:00:04]} 6. O-O {[%emt 0:00:54]} Nbd7 {[%emt 0:04:26]} 7. Qe2 {[%emt 0:02:56]} c5 {[%emt 0:02:27]} 8. a4 {[%emt 0:06:45]} Be7 {[%emt 0:02:16] D27: Queen's Gambit Accepted: Classical main line: 7 e4!? and 7 a4.} 9. e4 {[%emt 0:01:58][%cal Be3e4,Be4e5][%mdl 32]} O-O {[%emt 0:07:03]} 10. dxc5 {[%emt 0:07:00]} Nxc5 {[%emt 0:07:53] White is slightly better.} 11. Nc3 {[%emt 0:00:43]} Bd7 $146 {[%emt 0:13:52]} (11... a5 12. Rd1 Qb6 13. Bg5 Re8 14. e5 Nfd7 15. Bxe7 Rxe7 16. Nb5 Na6 17. Rd6 Qc5 18. Rad1 Nf8 19. Rd8 Nc7 20. Nxc7 Qxc7 21. Bb5 Rb8 22. Qd2 f6 23. Rc1 {1-0 Bjelobrk,I (2277)-Belletty,M Melbourne CC-ch 2003}) 12. e5 {[%emt 0:12:30]} Nd5 {[%emt 0:03:21]} 13. Bxd5 {[%emt 0:08:33]} exd5 {[%emt 0:00:10]} 14. Nxd5 {[%emt 0:00:30]} Bxa4 {[%emt 0:01:20]} 15. Nxe7+ {[%emt 0:03:05]} Qxe7 {[%emt 0:00:02]} 16. Bg5 {[%emt 0:00:18] Opposite bishops and equal position} Qd7 {[%emt 0:03:42]} 17. Qd2 {[%emt 0:06:51]} (17. Qe3 $11 Ne6 18. Rfe1) 17... Qxd2 $15 {[%emt 0:03:36]} 18. Bxd2 {[%emt 0:02:35] Hoping for Bb4.} Bb5 {[%emt 0:00:54]} 19. Rfe1 {[%emt 0:01:19]} Nd3 {[%emt 0:01:40][%csl LRb2,LRe1]} 20. Reb1 {[%emt 0:00:37]} Bc6 {[%emt 0:05:12] White is weak on the light squares} 21. Bc3 {[%emt 0:02:20]} Bxf3 {[%emt 0:01:36]} 22. gxf3 {[%emt 0:00:10]} Rfd8 {[%emt 0:04:10] Black is more active.} 23. Ra4 {[%emt 0:01:06]} b5 {[%emt 0:02:52]} 24. Re4 {[%emt 0:01:19]} (24. Ra5 $15 {is more appropriate.}) 24... a5 $1 $17 {[%emt 0:04:30]} 25. Kf1 {[%emt 0:06:24] [#]} Nc5 $1 {[%emt 0:00:52]} 26. Rd4 {[%emt 0:04:23]} Rxd4 {[%emt 0:00:42]} 27. Bxd4 {[%emt 0:00:07][%mdl 4096] Endgame KRB-KRN} Nb3 {[%emt 0:00:16]} 28. Be3 {[%emt 0:01:25] Prevents Nd2+.} a4 {[%emt 0:05:42]} 29. Ke2 {[%emt 0:00:50]} Kf8 {[%emt 0:01:52]} 30. Kd3 {[%emt 0:01:39]} Rc8 {[%emt 0:00:31]} 31. f4 {[%emt 0:07:46]} g6 {[%emt 0:00:34]} 32. Ke4 {[%emt 0:00:26]} Ke7 {[%emt 0:01:09]} 33. h4 {[%emt 0:01:25][%cal Oh4h5]} Ke6 {[%emt 0:02:28]} (33... Rc4+ $17 34. Kd5 Rc8) 34. h5 {[%emt 0:00:23] [#] This costs White the game.} Rd8 $1 $19 {[%emt 0:03:11]} ({Worse is} 34... gxh5 35. f5+ Ke7 36. Rd1 $11) (34... Rc4+ 35. Kd3 $17) 35. hxg6 {[%emt 0:01:30]} (35. Kf3 {was worth a try.}) 35... hxg6 {[%emt 0:00:06]} 36. f5+ {[%emt 0:03:24]} gxf5+ {[%emt 0:00:09]} 37. Kf4 {[%emt 0:00:11]} Rg8 {[%emt 0:03:38]} 38. Rd1 {[%emt 0:04:31]} Rg4+ {[%emt 0:00:13]} 39. Kf3 {[%emt 0:00:02]} Kxe5 {[%emt 0:00:06] White must now prevent ...Nd4+.} 40. Rd7 {[%emt 0:00:43]} (40. Ba7) 40... Nd4+ {[%emt 0:00:13] Black is clearly winning.} 41. Bxd4+ {[%emt 0:00:38]} Rxd4 {[%emt 0:00:07]} 42. Rxf7 {[%emt 0:00:40]} Rd3+ {[%emt 0:00:23]} 43. Ke2 {[%emt 0:05:42]} Rb3 {[%emt 0:00:31] Weighted Error Value: White=0.44/Black=0.08 (flawless)   Mistake:       	White=5     	Black=1      Inaccurate:     	White=3     	---        OK:         	White=13    	Black=10     Best:        	White=1     	Black=5      Strong:       	---       	Black=3} 0-1

[Event "44th Indian Team Championship 2025"]
[Site "Gujarat"]
[Date "2025.03.05"]
[Round "1.14"]
[White "Sahoo, Utkal Ranjan"]
[Black "Samarth Jain"]
[Result "1-0"]
[Annotator "TA"]
[ECO "E92"]
[WhiteElo "2268"]
[BlackElo "1800"]
[PlyCount "59"]
[EventDate "2025.03.03"]
[EventCountry "IND"]
[SourceTitle "playchess.com"]
[Source "ChessBase"]
[SourceQuality "1"]
[TimeControl "5400+30"]

{[%evp 19,59,41,58,52,86,71,116,108,118,105,110,122,129,127,117,127,132,30,29,43,75,70,100,104,98,95,156,151,180,209,325,329,469,457,29995,-171,29996,29997,29997,29998,29998,29998]} 1. d4 {[%emt 0:02:22]} Nf6 {[%emt 0:00:58]} 2. c4 {[%emt 0:00:10]} g6 {[%emt 0:00:04]} 3. Nc3 {[%emt 0:00:09]} Bg7 {[%emt 0:00:06]} 4. e4 {[%emt 0:00:06]} d6 {[%emt 0:00:07]} 5. Nf3 {[%emt 0:00:07][%cal Bg1f3,Bf3d2,Bd2c4][%mdl 32]} O-O {[%emt 0:00:09]} 6. Be2 {[%emt 0:00:05]} Nc6 {[%emt 0:00:27]} 7. Be3 {[%emt 0:04:08]} e5 {[%emt 0:00:08]} 8. d5 {[%emt 0:00:18]} Ne7 {[%emt 0:02:58]} 9. Nd2 {[%emt 0:00:25]} Ne8 {[%emt 0:07:17]} 10. b4 {[%emt 0:04:40]} f5 {[%emt 0:00:00][%cal Bf7f5,Bf5f4][%mdl 32] Threatens to win with ...f4.} 11. f3 $1 {[%emt 0:00:14] E92: King's Indian: Classical: 6 Be2 e5: 7 dxe5, 7 Be3 and Petrosian System without 7...Nbd7.} Rf7 {[%emt 0:02:28]} 12. c5 {[%emt 0:01:50]} Bf8 {[%emt 0:01:37]} 13. Nc4 {[%emt 0:03:52] White is better.} f4 {[%emt 0:09:36]} 14. Bf2 {[%emt 0:00:25]} g5 {[%emt 0:02:30]} 15. cxd6 {[%emt 0:02:58]} cxd6 {[%emt 0:00:09]} 16. Nb5 {[%emt 0:00:48]} b6 {[%emt 0:07:44]} 17. a4 {[%emt 0:02:59]} Ba6 $146 {[%emt 0:04:37]} (17... Ng6 18. a5 Ba6 19. Nba3 b5 20. Nd2 Rc8 21. Bxb5 Bxb5 22. Nxb5 a6 23. Na7 Nh4 {1-0 Maksimovic,M (2155)-Stojkovic,M (2062) Belgrade-ch 2009 (7)}) 18. Qb3 {[%emt 0:02:50]} (18. Nbxd6 $16 Nxd6 19. Nxd6 (19. Nxe5 Bxe2 20. Qxe2 Rg7 $11) 19... Qxd6 20. Bxa6 Qxb4+ 21. Qd2) 18... Bxb5 $1 $11 {[%emt 0:05:41]} 19. axb5 {[%emt 0:00:05]} Nc8 {[%emt 0:00:09]} 20. h4 {[%emt 0:04:13] Black is weak on the light squares} h6 {[%emt 0:03:03]} 21. hxg5 {[%emt 0:01:26] White has strong rooks and is better} hxg5 {[%emt 0:00:03]} 22. Kd2 {[%emt 0:00:52]} Rb8 {[%emt 0:06:04]} (22... Ne7 $142) 23. g3 $1 $16 {[%emt 0:04:15] White has more active pieces. The black rooks are passive.} Rbb7 {[%emt 0:04:12]} 24. gxf4 {[%emt 0:00:56]} gxf4 {[%emt 0:01:15]} (24... exf4 $142 25. Qd3 Rh7) 25. Rag1+ $18 {[%emt 0:00:35]} Rg7 {[%emt 0:00:42]} (25... Bg7 {was called for.} 26. Bf1 Nc7) 26. Nxe5 $1 {[%emt 0:00:34]} dxe5 {[%emt 0:07:10] [#]} (26... Qf6 $18 27. Ng4 Rxg4) 27. d6+ $1 {[%emt 0:00:35]} Rbf7 {[%emt 0:00:19] [#]} 28. Qxf7+ $3 {[%emt 0:00:12][%mdl 512] White mates.} Kxf7 {[%emt 0:00:51]} 29. Bc4+ {[%emt 0:00:04]} Kf6 {[%emt 0:00:44]} 30. Bh4+ {[%emt 0:00:04] Weighted Error Value: White=0.09 (flawless) /Black=0.77  Missed win:     	---       	Black=1      Mistake:       	White=1     	Black=4      Inaccurate:     	---       	Black=4      OK:         	White=6     	Black=3      Strong:       	White=3     	Black=1} 1-0